[Event "GrandPrix_30.05"]
[Site "Chess.com"]
[Date "2020.05.30"]
[Round "3"]
[White "switlave"]
[Black "Keks2017"]
[Result "1/2-1/2"]
[WhiteElo "2184"]
[BlackElo "2353"]
[TimeControl "600+2"]
[EndTime "9:23:50 PDT"]
[Termination "Game drawn - insufficient material"]

1. d4 {[%clk 0:10:01.9]} 1... d6 {[%clk 0:09:58.8]} 2. Bf4 {[%clk 0:10:00.5]}
2... Nf6 {[%clk 0:09:57.7]} 3. e3 {[%clk 0:09:56.4]} 3... g6 {[%clk 0:09:57.4]}
4. Nf3 {[%clk 0:09:53.8]} 4... Bg7 {[%clk 0:09:58]} 5. Be2 {[%clk 0:09:50.3]}
5... O-O {[%clk 0:09:58.1]} 6. h3 {[%clk 0:09:51]} 6... c5 {[%clk 0:09:58.6]} 7.
c3 {[%clk 0:09:44.6]} 7... Be6 {[%clk 0:09:58.6]} 8. Nbd2 {[%clk 0:09:33.3]}
8... Qb6 {[%clk 0:09:58]} 9. Qb1 {[%clk 0:09:31.1]} 9... Rc8 {[%clk 0:09:54.7]}
10. O-O {[%clk 0:08:15.8]} 10... Bf5 {[%clk 0:09:35.5]} 11. Nc4 {[%clk
0:05:58.2]} 11... Qd8 {[%clk 0:09:25.1]} 12. Qd1 {[%clk 0:05:55]} 12... b5
{[%clk 0:09:10.1]} 13. Ncd2 {[%clk 0:05:50.4]} 13... Nbd7 {[%clk 0:08:56.1]} 14.
Bxb5 {[%clk 0:05:28.6]} 14... Qb6 {[%clk 0:08:56.2]} 15. Qe2 {[%clk 0:04:30.7]}
15... a6 {[%clk 0:08:38.8]} 16. Bxd7 {[%clk 0:04:20.3]} 16... Bxd7 {[%clk
0:08:37.2]} 17. Rab1 {[%clk 0:04:15.1]} 17... cxd4 {[%clk 0:08:34]} 18. exd4
{[%clk 0:03:48.1]} 18... Bf5 {[%clk 0:08:30.5]} 19. Qxe7 {[%clk 0:02:26.4]}
19... Bxb1 {[%clk 0:08:23]} 20. Rxb1 {[%clk 0:02:25.6]} 20... Rd8 {[%clk
0:08:14.7]} 21. Nc4 {[%clk 0:01:41.6]} 21... Qa7 {[%clk 0:08:08.6]} 22. Qxa7
{[%clk 0:01:35.8]} 22... Rxa7 {[%clk 0:08:08.9]} 23. Nxd6 {[%clk 0:01:31]} 23...
Nd5 {[%clk 0:07:57.2]} 24. Bg3 {[%clk 0:01:28.9]} 24... Bf8 {[%clk 0:07:53.3]}
25. Ne4 {[%clk 0:01:18.2]} 25... f5 {[%clk 0:07:47]} 26. Nc5 {[%clk 0:01:08.3]}
26... Re8 {[%clk 0:07:41.3]} 27. Be5 {[%clk 0:01:04.8]} 27... a5 {[%clk
0:07:31.7]} 28. Kf1 {[%clk 0:01:00.5]} 28... Nb6 {[%clk 0:07:22.9]} 29. b3
{[%clk 0:00:58.6]} 29... Nd5 {[%clk 0:07:19]} 30. c4 {[%clk 0:00:55.5]} 30...
Nb4 {[%clk 0:06:59.1]} 31. a3 {[%clk 0:00:45.7]} 31... Nc6 {[%clk 0:06:58.9]}
32. b4 {[%clk 0:00:39]} 32... axb4 {[%clk 0:06:52.3]} 33. axb4 {[%clk
0:00:40.6]} 33... Ra2 {[%clk 0:06:50.9]} 34. Nd3 {[%clk 0:00:26.8]} 34... Ra3
{[%clk 0:06:30.8]} 35. Ke2 {[%clk 0:00:23.9]} 35... Bg7 {[%clk 0:06:19.8]} 36.
Kd2 {[%clk 0:00:24.2]} 36... Ra2+ {[%clk 0:06:07.7]} 37. Kc3 {[%clk 0:00:24.5]}
37... Bh6 {[%clk 0:05:13]} 38. b5 {[%clk 0:00:18.1]} 38... Nxe5 {[%clk
0:05:13.2]} 39. Nfxe5 {[%clk 0:00:15.2]} 39... Bd2+ {[%clk 0:05:06.8]} 40. Kb3
{[%clk 0:00:15.8]} 40... Rea8 {[%clk 0:05:07.1]} 41. c5 {[%clk 0:00:16.8]} 41...
R8a4 {[%clk 0:04:48.6]} 42. b6 {[%clk 0:00:17.6]} 42... R2a3+ {[%clk 0:04:41.4]}
43. Kc2 {[%clk 0:00:18.6]} 43... Ra2+ {[%clk 0:04:41.6]} 44. Rb2 {[%clk
0:00:19.1]} 44... Ba5 {[%clk 0:04:34.8]} 45. Rxa2 {[%clk 0:00:19]} 45... Rxa2+
{[%clk 0:04:34.6]} 46. Kb3 {[%clk 0:00:20.4]} 46... Ra1 {[%clk 0:04:35]} 47. Kc4
{[%clk 0:00:21.3]} 47... Rb1 {[%clk 0:04:25.9]} 48. Nc6 {[%clk 0:00:22]} 48...
Bxb6 {[%clk 0:04:26.5]} 49. cxb6 {[%clk 0:00:23.3]} 49... Rxb6 {[%clk
0:04:27.1]} 50. Kc5 {[%clk 0:00:24.6]} 50... Rb3 {[%clk 0:04:25.6]} 51. Nde5
{[%clk 0:00:25.8]} 51... Rb2 {[%clk 0:04:23.7]} 52. d5 {[%clk 0:00:25.6]} 52...
Rc2+ {[%clk 0:04:19.9]} 53. Kd6 {[%clk 0:00:23.5]} 53... Rxf2 {[%clk 0:04:19.9]}
54. Ke7 {[%clk 0:00:21.1]} 54... Rxg2 {[%clk 0:04:18.2]} 55. d6 {[%clk
0:00:21.3]} 55... Rd2 {[%clk 0:04:18.2]} 56. d7 {[%clk 0:00:21.2]} 56... Kg7
{[%clk 0:04:07.2]} 57. Nc4 {[%clk 0:00:19.1]} 57... Rxd7+ {[%clk 0:04:03.6]} 58.
Kxd7 {[%clk 0:00:21]} 58... Kf6 {[%clk 0:03:51.7]} 59. Nd4 {[%clk 0:00:18.1]}
59... Kg5 {[%clk 0:03:43.1]} 60. Nf3+ {[%clk 0:00:16.3]} 60... Kf4 {[%clk
0:03:20.2]} 61. Nce5 {[%clk 0:00:14.4]} 61... g5 {[%clk 0:03:18.9]} 62. Ke6
{[%clk 0:00:13]} 62... g4 {[%clk 0:03:19.1]} 63. h4 {[%clk 0:00:13.1]} 63...
gxf3 {[%clk 0:03:08.8]} 64. Nxf3 {[%clk 0:00:13.9]} 64... Kg4 {[%clk 0:02:59]}
65. Ke5 {[%clk 0:00:07.7]} 65... f4 {[%clk 0:02:36.6]} 66. Ke4 {[%clk
0:00:06.7]} 66... h6 {[%clk 0:02:34.7]} 67. Ne5+ {[%clk 0:00:07]} 67... Kxh4
{[%clk 0:02:35]} 68. Kxf4 {[%clk 0:00:08.1]} 68... Kh3 {[%clk 0:02:34.5]} 69.
Nf7 {[%clk 0:00:08.3]} 69... Kg2 {[%clk 0:02:33.8]} 70. Nxh6 {[%clk 0:00:08.1]}
1/2-1/2

[Event "GrandPrix_30.05"]
[Site "Chess.com"]
[Date "2020.05.30"]
[Round "3"]
[White "PavelShkapenko"]
[Black "GeorgMeier"]
[Result "1/2-1/2"]
[WhiteElo "2447"]
[BlackElo "2643"]
[TimeControl "600+2"]
[EndTime "9:23:52 PDT"]
[Termination "Game drawn by agreement"]

1. e4 {[%clk 0:09:58.9]} 1... e6 {[%clk 0:10:01.4]} 2. d4 {[%clk 0:10:00.1]}
2... d5 {[%clk 0:10:02.7]} 3. exd5 {[%clk 0:10:01.8]} 3... exd5 {[%clk
0:10:03.8]} 4. Nf3 {[%clk 0:10:03.5]} 4... c6 {[%clk 0:10:04]} 5. c4 {[%clk
0:10:03.7]} 5... Bb4+ {[%clk 0:10:03.5]} 6. Nc3 {[%clk 0:10:04.6]} 6... Ne7
{[%clk 0:09:49.2]} 7. Bd3 {[%clk 0:10:05.1]} 7... Bf5 {[%clk 0:08:36.8]} 8. O-O
{[%clk 0:09:27.8]} 8... O-O {[%clk 0:08:12.1]} 9. Bxf5 {[%clk 0:09:15.2]} 9...
Nxf5 {[%clk 0:08:11.4]} 10. Qd3 {[%clk 0:09:04.2]} 10... g6 {[%clk 0:07:47.2]}
11. cxd5 {[%clk 0:08:18.2]} 11... Bxc3 {[%clk 0:07:31.9]} 12. dxc6 {[%clk
0:08:01.2]} 12... Nxc6 {[%clk 0:07:13.8]} 13. bxc3 {[%clk 0:08:01.8]} 13... Rc8
{[%clk 0:07:09.6]} 14. Re1 {[%clk 0:07:54.8]} 14... Qc7 {[%clk 0:06:42.2]} 15.
Bg5 {[%clk 0:06:28.2]} 15... Na5 {[%clk 0:06:13.4]} 16. Rac1 {[%clk 0:06:27]}
16... f6 {[%clk 0:05:58.5]} 17. Bd2 {[%clk 0:06:25]} 17... Qc4 {[%clk
0:05:59.4]} 18. Qxc4+ {[%clk 0:05:35.1]} 18... Nxc4 {[%clk 0:06:01.3]} 19. g4
{[%clk 0:05:25.6]} 19... Nfd6 {[%clk 0:04:14.1]} 20. Bf4 {[%clk 0:05:18.6]}
20... f5 {[%clk 0:04:02.6]} 21. Bxd6 {[%clk 0:04:35.8]} 21... Nxd6 {[%clk
0:04:02.9]} 22. gxf5 {[%clk 0:04:37.4]} 22... Rxf5 {[%clk 0:03:20.8]} 23. Ne5
{[%clk 0:04:34.5]} 23... Nb5 {[%clk 0:03:15.3]} 24. Rb1 {[%clk 0:03:48.7]} 24...
Nxc3 {[%clk 0:02:59.7]} 25. Rxb7 {[%clk 0:03:48]} 25... Re8 {[%clk 0:02:16.6]}
26. Kf1 {[%clk 0:03:11.6]} 26... a6 {[%clk 0:02:05.9]} 27. a4 {[%clk 0:02:23.5]}
27... Rf4 {[%clk 0:01:33.5]} 28. Rc1 {[%clk 0:01:03.9]} 28... Nd5 {[%clk
0:01:27.9]} 29. h3 {[%clk 0:00:58.4]} 29... Ref8 {[%clk 0:00:18.9]} 30. f3
{[%clk 0:00:51.9]} 30... Rxd4 {[%clk 0:00:14.7]} 31. Kf2 {[%clk 0:00:53]} 31...
Rd2+ {[%clk 0:00:12.2]} 32. Kg1 {[%clk 0:00:12.2]} 32... Re2 {[%clk 0:00:07.3]}
33. Ng4 {[%clk 0:00:11]} 33... Re7 {[%clk 0:00:07.5]} 34. Rxe7 {[%clk
0:00:10.8]} 34... Nxe7 {[%clk 0:00:09.4]} 35. Kg2 {[%clk 0:00:11.9]} 35... Nd5
{[%clk 0:00:09.5]} 36. Kg3 {[%clk 0:00:13.1]} 36... Kg7 {[%clk 0:00:07.3]} 37.
Rc6 {[%clk 0:00:13.8]} 37... a5 {[%clk 0:00:06.4]} 38. Ra6 {[%clk 0:00:14.5]}
38... Rf7 {[%clk 0:00:05.9]} 39. Rxa5 {[%clk 0:00:12.3]} 1/2-1/2

[Event "GrandPrix_30.05"]
[Site "Chess.com"]
[Date "2020.05.30"]
[Round "3"]
[White "IriBu"]
[Black "Sakkcapak"]
[Result "0-1"]
[WhiteElo "2283"]
[BlackElo "2174"]
[TimeControl "600+2"]
[EndTime "9:23:54 PDT"]
[Termination "Sakkcapak won by resignation"]

1. e4 {[%clk 0:10:01.9]} 1... e6 {[%clk 0:10:00.3]} 2. d4 {[%clk 0:10:01.4]}
2... d5 {[%clk 0:10:00.7]} 3. Nc3 {[%clk 0:10:02.1]} 3... Nf6 {[%clk 0:10:01.3]}
4. Bg5 {[%clk 0:10:02.1]} 4... Bb4 {[%clk 0:10:01.4]} 5. e5 {[%clk 0:10:02.6]}
5... h6 {[%clk 0:10:01.8]} 6. Bh4 {[%clk 0:10:03.9]} 6... g5 {[%clk 0:09:59.4]}
7. Bg3 {[%clk 0:10:05.1]} 7... Ne4 {[%clk 0:09:59.6]} 8. Ne2 {[%clk 0:10:06.3]}
8... f5 {[%clk 0:10:00]} 9. f3 {[%clk 0:10:04.5]} 9... Nxc3 {[%clk 0:09:43.1]}
10. Nxc3 {[%clk 0:10:01.6]} 10... Bxc3+ {[%clk 0:09:41.9]} 11. bxc3 {[%clk
0:10:02]} 11... c5 {[%clk 0:09:42.7]} 12. Qd2 {[%clk 0:09:34.3]} 12... Qa5
{[%clk 0:09:36.3]} 13. dxc5 {[%clk 0:09:14]} 13... Qxc5 {[%clk 0:09:10.5]} 14.
h4 {[%clk 0:08:54.3]} 14... Rg8 {[%clk 0:09:00.7]} 15. hxg5 {[%clk 0:08:50.3]}
15... hxg5 {[%clk 0:09:02.6]} 16. Rh7 {[%clk 0:08:10.9]} 16... Nc6 {[%clk
0:08:28.4]} 17. Bf2 {[%clk 0:07:41.6]} 17... Qa5 {[%clk 0:08:17.1]} 18. a4
{[%clk 0:06:28.7]} 18... Bd7 {[%clk 0:07:54.4]} 19. Bb5 {[%clk 0:05:45.4]} 19...
O-O-O {[%clk 0:07:24.7]} 20. Bd4 {[%clk 0:04:58.8]} 20... Rh8 {[%clk 0:06:18.2]}
21. Rxh8 {[%clk 0:04:59.3]} 21... Rxh8 {[%clk 0:06:19.8]} 22. Kf2 {[%clk
0:04:05.7]} 22... g4 {[%clk 0:05:27.2]} 23. Rb1 {[%clk 0:03:51.2]} 23... gxf3
{[%clk 0:05:16.1]} 24. Kxf3 {[%clk 0:03:38.9]} 24... a6 {[%clk 0:04:47.5]} 25.
Bxc6 {[%clk 0:02:53]} 25... Bxc6 {[%clk 0:04:49.4]} 26. Rb4 {[%clk 0:02:35.1]}
26... Qd8 {[%clk 0:04:32.7]} 27. Rb6 {[%clk 0:01:50.8]} 27... Qh4 {[%clk
0:03:59]} 28. Qf4 {[%clk 0:01:17.5]} 28... Qe1 {[%clk 0:03:36.9]} 29. Qg5 {[%clk
0:00:50.2]} 29... Qf1+ {[%clk 0:03:18.9]} 30. Bf2 {[%clk 0:00:29.3]} 30... d4+
{[%clk 0:02:47.1]} 31. Rxc6+ {[%clk 0:00:29.7]} 31... bxc6 {[%clk 0:02:49]} 32.
cxd4 {[%clk 0:00:19]} 32... Qd1+ {[%clk 0:02:41.5]} 33. Kg3 {[%clk 0:00:11.2]}
33... Qxc2 {[%clk 0:02:02]} 34. Be3 {[%clk 0:00:12.4]} 34... Qe2 {[%clk
0:01:52.3]} 35. Bf4 {[%clk 0:00:07.5]} 35... Qh5 {[%clk 0:01:38.5]} 36. Qe7
{[%clk 0:00:07.8]} 36... Qg4+ {[%clk 0:01:35.7]} 37. Kf2 {[%clk 0:00:08.9]}
37... Qxf4+ {[%clk 0:01:31.6]} 38. Ke2 {[%clk 0:00:10.2]} 38... Qe4+ {[%clk
0:01:31.9]} 39. Kd2 {[%clk 0:00:11.3]} 39... Qxd4+ {[%clk 0:01:31.8]} 40. Kc2
{[%clk 0:00:12.7]} 40... Qxa4+ {[%clk 0:01:26.2]} 41. Kc3 {[%clk 0:00:13.4]}
41... Qa5+ {[%clk 0:01:23.5]} 42. Kc2 {[%clk 0:00:14.6]} 42... Qxe5 {[%clk
0:01:16.5]} 43. Qa7 {[%clk 0:00:14]} 43... Qe4+ {[%clk 0:01:03.4]} 44. Kc3
{[%clk 0:00:13.9]} 44... Qe5+ {[%clk 0:01:01.7]} 45. Kc2 {[%clk 0:00:14.9]}
45... Rd8 {[%clk 0:00:53.9]} 46. Qxa6+ {[%clk 0:00:15.1]} 46... Kd7 {[%clk
0:00:54.3]} 47. Qb7+ {[%clk 0:00:16.3]} 47... Qc7 {[%clk 0:00:53.9]} 48. Qb4
{[%clk 0:00:16.5]} 48... Qd6 {[%clk 0:00:53.6]} 49. Qb7+ {[%clk 0:00:17.1]}
49... Ke8 {[%clk 0:00:54.6]} 50. Qg7 {[%clk 0:00:17.6]} 50... Qd3+ {[%clk
0:00:54.9]} 51. Kb2 {[%clk 0:00:18.5]} 51... Rb8+ {[%clk 0:00:53.3]} 0-1

[Event "GrandPrix_30.05"]
[Site "Chess.com"]
[Date "2020.05.30"]
[Round "3"]
[White "wnstop"]
[Black "vpantev"]
[Result "1-0"]
[WhiteElo "2285"]
[BlackElo "2588"]
[TimeControl "600+2"]
[EndTime "9:23:55 PDT"]
[Termination "wnstop won by resignation"]

1. e4 {[%clk 0:10:01.9]} 1... c6 {[%clk 0:09:57.6]} 2. d4 {[%clk 0:10:02.6]}
2... d5 {[%clk 0:09:58.7]} 3. e5 {[%clk 0:10:03.6]} 3... Bf5 {[%clk 0:09:59.2]}
4. Bd3 {[%clk 0:10:04.8]} 4... e6 {[%clk 0:09:55.3]} 5. Bxf5 {[%clk 0:09:12]}
5... exf5 {[%clk 0:09:54.1]} 6. Qd3 {[%clk 0:09:09.8]} 6... g6 {[%clk
0:09:43.4]} 7. Ne2 {[%clk 0:09:02.8]} 7... Na6 {[%clk 0:09:39.2]} 8. h4 {[%clk
0:08:34]} 8... h5 {[%clk 0:09:34.9]} 9. Bg5 {[%clk 0:08:23.3]} 9... Be7 {[%clk
0:09:31]} 10. Bxe7 {[%clk 0:08:11.8]} 10... Qxe7 {[%clk 0:09:25.5]} 11. Nd2
{[%clk 0:08:12.1]} 11... Nc7 {[%clk 0:09:20.6]} 12. Nf4 {[%clk 0:07:49.5]} 12...
Nh6 {[%clk 0:08:48.9]} 13. O-O-O {[%clk 0:07:01.5]} 13... O-O-O {[%clk 0:08:20]}
14. Nf3 {[%clk 0:06:51.9]} 14... Ne6 {[%clk 0:08:06.6]} 15. Qd2 {[%clk
0:06:39.3]} 15... Rdf8 {[%clk 0:07:22]} 16. g3 {[%clk 0:06:27]} 16... Kb8 {[%clk
0:07:12.3]} 17. Kb1 {[%clk 0:06:27.3]} 17... Rd8 {[%clk 0:07:05.7]} 18. Ka1
{[%clk 0:06:20]} 18... Ng4 {[%clk 0:06:53.7]} 19. Rhf1 {[%clk 0:06:03.5]} 19...
Nh6 {[%clk 0:06:51]} 20. Rfe1 {[%clk 0:06:02.1]} 20... Ng4 {[%clk 0:06:50.2]}
21. Re2 {[%clk 0:06:02.7]} 21... Rd7 {[%clk 0:06:35.3]} 22. c3 {[%clk
0:05:44.7]} 22... Nh6 {[%clk 0:06:29.1]} 23. Nd3 {[%clk 0:05:42.9]} 23... Ng8
{[%clk 0:06:15.9]} 24. Ng5 {[%clk 0:05:33.5]} 24... Rd8 {[%clk 0:05:41.6]} 25.
b4 {[%clk 0:05:06.3]} 25... Qe8 {[%clk 0:05:34.9]} 26. Nc5 {[%clk 0:04:57.5]}
26... b6 {[%clk 0:05:21.5]} 27. Nd3 {[%clk 0:04:30.1]} 27... Ne7 {[%clk
0:05:19.2]} 28. Nf3 {[%clk 0:04:23.9]} 28... Nc8 {[%clk 0:05:16.3]} 29. Rb1
{[%clk 0:04:23.3]} 29... Rd7 {[%clk 0:05:09.7]} 30. Qb2 {[%clk 0:04:20.4]} 30...
Rb7 {[%clk 0:05:00.3]} 31. a4 {[%clk 0:04:19.7]} 31... Qd7 {[%clk 0:04:52.7]}
32. Qc1 {[%clk 0:04:07.8]} 32... Qe7 {[%clk 0:04:46.1]} 33. Reb2 {[%clk
0:03:57.3]} 33... Rc7 {[%clk 0:04:44.3]} 34. Nc5 {[%clk 0:03:42]} 34... Ka8
{[%clk 0:04:31.8]} 35. Nxe6 {[%clk 0:03:26.6]} 35... fxe6 {[%clk 0:04:30.2]} 36.
Ng5 {[%clk 0:03:26.8]} 36... Qd7 {[%clk 0:04:15.8]} 37. Nh3 {[%clk 0:03:25.4]}
37... Qg7 {[%clk 0:03:59.9]} 38. Nf4 {[%clk 0:03:21.6]} 38... Re8 {[%clk
0:03:59.6]} 39. Nd3 {[%clk 0:02:49.2]} 39... Ne7 {[%clk 0:03:56.1]} 40. Qg5
{[%clk 0:02:47.3]} 40... Qf7 {[%clk 0:03:11.4]} 41. Nf4 {[%clk 0:02:46.6]} 41...
Rf8 {[%clk 0:03:11.2]} 42. Re1 {[%clk 0:02:35.1]} 42... Kb7 {[%clk 0:03:08.4]}
43. a5 {[%clk 0:02:00.7]} 43... Kc8 {[%clk 0:03:00.7]} 44. Ra2 {[%clk
0:01:54.9]} 44... Kd7 {[%clk 0:03:00.5]} 45. axb6 {[%clk 0:01:48.3]} 45... axb6
{[%clk 0:03:01.1]} 46. Ra6 {[%clk 0:01:49.7]} 46... Rb8 {[%clk 0:02:43.4]} 47.
Qf6 {[%clk 0:01:40.9]} 47... Qg8 {[%clk 0:02:43.1]} 48. Kb2 {[%clk 0:01:37.1]}
48... Rf8 {[%clk 0:02:36.6]} 49. Qg5 {[%clk 0:01:36.9]} 49... Rb8 {[%clk
0:02:31.8]} 50. Rea1 {[%clk 0:01:36.8]} 50... c5 {[%clk 0:02:31.6]} 51. dxc5
{[%clk 0:01:14.7]} 51... Qc8 {[%clk 0:02:09.7]} 52. Qf6 {[%clk 0:00:52.8]} 52...
Rc6 {[%clk 0:02:03.6]} 53. Nxg6 {[%clk 0:00:46.9]} 53... Nxg6 {[%clk 0:01:39]}
54. Qxg6 {[%clk 0:00:48.8]} 54... bxc5 {[%clk 0:01:36.3]} 55. Qf7+ {[%clk
0:00:39.4]} 55... Kd8 {[%clk 0:01:34.5]} 56. Rxc6 {[%clk 0:00:21.5]} 56... Qxc6
{[%clk 0:01:34.9]} 57. Ra7 {[%clk 0:00:22.5]} 1-0

[Event "GrandPrix_30.05"]
[Site "Chess.com"]
[Date "2020.05.30"]
[Round "3"]
[White "Andrei_Belozerov"]
[Black "SuperFineHipster"]
[Result "1/2-1/2"]
[WhiteElo "2442"]
[BlackElo "2198"]
[TimeControl "600+2"]
[EndTime "9:23:55 PDT"]
[Termination "Game drawn by repetition"]

1. e4 {[%clk 0:10:01.9]} 1... c5 {[%clk 0:10:00.2]} 2. Nf3 {[%clk 0:10:02.1]}
2... d6 {[%clk 0:10:01.6]} 3. d4 {[%clk 0:10:03.5]} 3... cxd4 {[%clk 0:10:03.5]}
4. Nxd4 {[%clk 0:10:04.9]} 4... Nf6 {[%clk 0:10:05.1]} 5. Nc3 {[%clk 0:10:06.4]}
5... a6 {[%clk 0:10:06.2]} 6. Be3 {[%clk 0:10:07.6]} 6... e5 {[%clk 0:10:07.3]}
7. Nb3 {[%clk 0:10:08.2]} 7... Be6 {[%clk 0:10:08.4]} 8. f3 {[%clk 0:10:08.5]}
8... h5 {[%clk 0:10:09.3]} 9. Nd5 {[%clk 0:10:05.9]} 9... Bxd5 {[%clk
0:10:06.6]} 10. exd5 {[%clk 0:10:07]} 10... Nbd7 {[%clk 0:09:57.4]} 11. Qd2
{[%clk 0:10:02.8]} 11... Rc8 {[%clk 0:09:21.6]} 12. Rc1 {[%clk 0:09:20.7]} 12...
g6 {[%clk 0:09:14.7]} 13. c4 {[%clk 0:09:08.2]} 13... Bg7 {[%clk 0:08:43.1]} 14.
Be2 {[%clk 0:09:05.9]} 14... O-O {[%clk 0:08:43.1]} 15. O-O {[%clk 0:09:04.4]}
15... b6 {[%clk 0:06:50.1]} 16. Na1 {[%clk 0:08:16.3]} 16... a5 {[%clk
0:06:42.3]} 17. Nc2 {[%clk 0:08:14.3]} 17... Nc5 {[%clk 0:05:55.1]} 18. Na3
{[%clk 0:08:13.1]} 18... e4 {[%clk 0:05:37.3]} 19. Nb5 {[%clk 0:08:00.4]} 19...
exf3 {[%clk 0:05:32.6]} 20. Bxf3 {[%clk 0:07:57]} 20... Ng4 {[%clk 0:05:25.1]}
21. Bxg4 {[%clk 0:07:49.7]} 21... hxg4 {[%clk 0:05:26]} 22. Bd4 {[%clk
0:07:37.9]} 22... f5 {[%clk 0:05:05.9]} 23. Bxg7 {[%clk 0:07:30.8]} 23... Kxg7
{[%clk 0:05:07.8]} 24. Rce1 {[%clk 0:07:31.6]} 24... Qf6 {[%clk 0:04:41.8]} 25.
b3 {[%clk 0:06:53.9]} 25... Rce8 {[%clk 0:04:39.7]} 26. Nc7 {[%clk 0:06:33.5]}
26... Re7 {[%clk 0:04:12.8]} 27. Rxe7+ {[%clk 0:03:47.9]} 27... Qxe7 {[%clk
0:04:13.3]} 28. Ne6+ {[%clk 0:03:40.7]} 28... Nxe6 {[%clk 0:04:12.9]} 29. dxe6
{[%clk 0:03:41]} 29... Qxe6 {[%clk 0:02:47.8]} 30. Qd4+ {[%clk 0:03:41]} 30...
Qe5 {[%clk 0:02:47.4]} 31. Qxb6 {[%clk 0:03:41.9]} 31... Re8 {[%clk 0:02:19.7]}
32. Rd1 {[%clk 0:03:35.9]} 32... g3 {[%clk 0:02:15.6]} 33. hxg3 {[%clk
0:03:11.3]} 33... Qxg3 {[%clk 0:02:14.7]} 34. Qd4+ {[%clk 0:02:19.5]} 34... Re5
{[%clk 0:02:00.3]} 35. Qf2 {[%clk 0:02:19.9]} 35... Qc3 {[%clk 0:01:48.2]} 36.
Qd4 {[%clk 0:01:34.3]} 36... Qg3 {[%clk 0:01:05.7]} 37. Qf2 {[%clk 0:01:10.8]}
37... Qc3 {[%clk 0:01:00.2]} 38. Kh2 {[%clk 0:00:47.6]} 38... Re4 {[%clk
0:00:44.9]} 39. Qg3 {[%clk 0:00:32.6]} 39... Qf6 {[%clk 0:00:16.5]} 40. Qxd6
{[%clk 0:00:24.1]} 40... Qh4+ {[%clk 0:00:06.7]} 41. Kg1 {[%clk 0:00:25.2]}
41... Re1+ {[%clk 0:00:04.7]} 42. Rxe1 {[%clk 0:00:26.4]} 42... Qxe1+ {[%clk
0:00:06.4]} 43. Kh2 {[%clk 0:00:28]} 43... Qh4+ {[%clk 0:00:08.3]} 44. Kg1
{[%clk 0:00:29.3]} 44... Qe1+ {[%clk 0:00:10]} 45. Kh2 {[%clk 0:00:30.9]} 45...
Qh4+ {[%clk 0:00:11.3]} 46. Kg1 {[%clk 0:00:32.3]} 46... Qe1+ {[%clk 0:00:11.9]}
1/2-1/2

[Event "GrandPrix_30.05"]
[Site "Chess.com"]
[Date "2020.05.30"]
[Round "3"]
[White "ValeriyGrinev"]
[Black "Gabrielian_Artur"]
[Result "1-0"]
[WhiteElo "2147"]
[BlackElo "2229"]
[TimeControl "600+2"]
[EndTime "9:23:56 PDT"]
[Termination "ValeriyGrinev won on time"]

1. c4 {[%clk 0:10:01.9]} 1... Nf6 {[%clk 0:10:00]} 2. Nc3 {[%clk 0:10:01]} 2...
g6 {[%clk 0:10:00.9]} 3. e4 {[%clk 0:10:01]} 3... Bg7 {[%clk 0:10:01.6]} 4. d4
{[%clk 0:10:02.3]} 4... O-O {[%clk 0:10:02.1]} 5. Be2 {[%clk 0:10:03.8]} 5... d6
{[%clk 0:10:02.4]} 6. Nf3 {[%clk 0:10:05.4]} 6... e5 {[%clk 0:10:01.6]} 7. O-O
{[%clk 0:10:06.8]} 7... Nc6 {[%clk 0:10:02.2]} 8. d5 {[%clk 0:10:07.7]} 8... Ne7
{[%clk 0:10:03.1]} 9. b4 {[%clk 0:10:09.1]} 9... a5 {[%clk 0:10:01.8]} 10. Ba3
{[%clk 0:10:09.2]} 10... axb4 {[%clk 0:09:58.8]} 11. Bxb4 {[%clk 0:10:11.1]}
11... Nd7 {[%clk 0:09:57.6]} 12. a4 {[%clk 0:10:10.2]} 12... f5 {[%clk
0:09:46.9]} 13. Ng5 {[%clk 0:10:09.7]} 13... Nf6 {[%clk 0:09:44.7]} 14. Bf3
{[%clk 0:10:07.9]} 14... h6 {[%clk 0:07:57.4]} 15. Ne6 {[%clk 0:10:06.4]} 15...
Bxe6 {[%clk 0:07:58.5]} 16. dxe6 {[%clk 0:10:08.3]} 16... Nc6 {[%clk 0:07:59.8]}
17. Ba3 {[%clk 0:09:36.9]} 17... Re8 {[%clk 0:07:48.9]} 18. c5 {[%clk
0:09:08.3]} 18... dxc5 {[%clk 0:07:25.4]} 19. Bxc5 {[%clk 0:08:53.5]} 19... Qxd1
{[%clk 0:07:12.1]} 20. Rfxd1 {[%clk 0:08:42.6]} 20... Rxe6 {[%clk 0:06:10.3]}
21. Nb5 {[%clk 0:04:11.4]} 21... Rc8 {[%clk 0:05:30.4]} 22. exf5 {[%clk
0:03:56.1]} 22... gxf5 {[%clk 0:05:29.6]} 23. Rac1 {[%clk 0:03:57.6]} 23... e4
{[%clk 0:04:57.2]} 24. Be2 {[%clk 0:03:58]} 24... Ree8 {[%clk 0:04:56.5]} 25.
Bc4+ {[%clk 0:03:55.1]} 25... Kh8 {[%clk 0:04:41.3]} 26. Bf7 {[%clk 0:03:49.3]}
26... Re5 {[%clk 0:03:42.2]} 27. f4 {[%clk 0:03:45]} 27... exf3 {[%clk
0:03:34.4]} 28. gxf3 {[%clk 0:03:46.9]} 28... f4 {[%clk 0:03:05]} 29. Kf2 {[%clk
0:03:23.2]} 29... Bf8 {[%clk 0:02:32.7]} 30. Bxf8 {[%clk 0:02:40.4]} 30... Rxf8
{[%clk 0:02:32.6]} 31. Bb3 {[%clk 0:02:42.3]} 31... Rh5 {[%clk 0:01:19.7]} 32.
Kg2 {[%clk 0:01:49.2]} 32... Ne5 {[%clk 0:01:20]} 33. Nxc7 {[%clk 0:01:43]}
33... Rg5+ {[%clk 0:01:10.8]} 34. Kf2 {[%clk 0:01:28.9]} 34... Rh5 {[%clk
0:01:11.1]} 35. Kg2 {[%clk 0:01:10.7]} 35... Ng6 {[%clk 0:01:11.8]} 36. Rc3
{[%clk 0:00:54.9]} 36... Nh4+ {[%clk 0:01:08.2]} 37. Kh1 {[%clk 0:00:56.1]}
37... Nf5 {[%clk 0:01:05.1]} 38. Ne6 {[%clk 0:00:54.7]} 38... Rg8 {[%clk
0:00:52.3]} 39. Nxf4 {[%clk 0:00:55.3]} 39... Ng3+ {[%clk 0:00:47.7]} 40. Kg2
{[%clk 0:00:55.8]} 40... Ne2+ {[%clk 0:00:46.4]} 41. Bxg8 {[%clk 0:00:55.1]}
41... Nxf4+ {[%clk 0:00:47.4]} 42. Kh1 {[%clk 0:00:50.3]} 42... Kxg8 {[%clk
0:00:41.7]} 43. Rc7 {[%clk 0:00:50.3]} 43... N6d5 {[%clk 0:00:20.4]} 44. Rxb7
{[%clk 0:00:49.6]} 44... Re5 {[%clk 0:00:04]} 45. a5 {[%clk 0:00:45.2]} 1-0